fUSD/lending_fUSD_20240831
["ID","MTS","AMOUNT","RATE_DAILY","PERIOD"]
[336730733,1725085363825,-1624.05,0.00042191,120]
[336730734,1725085363879,-1465.91,0.00042191,120]
[336730735,1725085363930,-508.15,0.00042191,120]
[336730736,1725085363981,-1707.44,0.00042191,120]
[336730737,1725085364028,-500.0,0.00042191,120]
[336730738,1725085364077,-500.0,0.00042191,120]
[336730739,1725085364126,-500.0,0.00042191,120]
[336730740,1725085364348,-829.84,0.00042191,120]
[336730741,1725085364399,-500.0,0.00042191,120]
[336730742,1725085364449,-695.91,0.00042191,120]
[336730743,1725085364502,-508.01,0.00042191,120]
[336730744,1725085364554,-500.0,0.00042191,120]
[336730745,1725085364606,-500.0,0.00042191,120]
[336730746,1725085364656,-1694.24,0.00042191,120]
[336730747,1725085364706,-1329.5,0.00042191,120]
[336730748,1725085364753,-1254.74,0.00042191,120]
[336730749,1725085364801,-500.0,0.00042191,120]
[336730750,1725085364851,-701.74,0.00042191,120]
[336730751,1725085364898,-1718.9,0.00042191,120]
[336730752,1725085364946,-500.0,0.00042191,120]
[336730753,1725085364997,-500.0,0.00042191,120]
[336730754,1725085365046,-536.3,0.00042191,120]
[336730755,1725085365093,-500.0,0.00042191,120]
[336730756,1725085365140,-326.32371662,0.00042191,120]
[336730757,1725085365188,-1416.58,0.00042191,120]
[336730758,1725085365237,-1344.35,0.00042191,120]
[336730759,1725085365287,-500.0,0.00042191,120]
[336730760,1725085365338,-1308.79,0.00042191,120]
[336730761,1725085365390,-1065.87,0.00042191,120]
[336730762,1725085365440,-598.48,0.00042191,120]
[336730763,1725085365490,-934.02,0.00042191,120]
[336730764,1725085365540,-1376.61,0.00042191,120]
[336730765,1725085365591,-1682.93,0.00042191,120]
[336730766,1725085365651,-1537.85,0.00042191,120]
[336730767,1725085365718,-546.73,0.00042191,120]
[336730768,1725085365782,-1026.63,0.00042191,120]
[336730769,1725085365836,-500.0,0.00042191,120]
[336730770,1725085365887,-1312.14,0.00042191,120]
[336730771,1725085365938,-500.0,0.00042191,120]
[336730772,1725085365990,-1653.03,0.00042191,120]
[336730773,1725085366040,-500.0,0.00042191,120]
[336730774,1725085366092,-802.15,0.00042191,120]
[336730775,1725085366145,-522.63,0.00042191,120]
[336730776,1725085366197,-500.0,0.00042191,120]
[336730777,1725085366250,-500.0,0.00042191,120]
[336730778,1725085366302,-500.0,0.00042191,120]
[336730779,1725085366353,-520.04,0.00042191,120]
[336730780,1725085366404,-1148.46,0.00042191,120]
[336730781,1725085366455,-500.0,0.00042191,120]
[336730782,1725085366507,-554.41,0.00042191,120]
[336730783,1725085366559,-795.3,0.00042191,120]
[336730784,1725085366612,-1325.16,0.00042191,120]
[336730785,1725085366660,-1311.27,0.00042191,120]
[336730786,1725085366713,-1407.95,0.00042191,120]
[336730787,1725085366764,-1863.91,0.00042191,120]
[336730788,1725085366811,-500.0,0.00042191,120]
[336730789,1725085366857,-1652.24,0.00042191,120]
[336730790,1725085366909,-641.76,0.00042191,120]
[336730791,1725085366956,-854.31,0.00042191,120]
[336730792,1725085367004,-500.0,0.00042191,120]
[336730793,1725085367055,-527.05,0.00042191,120]
[336730794,1725085367106,-500.0,0.00042191,120]
[336730795,1725085367154,-616.77,0.00042191,120]
[336730796,1725085367206,-2261.76,0.00042191,120]
[336730797,1725085367264,-956.29,0.00042191,120]
[336730798,1725085367319,-500.0,0.00042191,120]
[336730799,1725085367375,-675.48,0.00042191,120]
[336730800,1725085367427,-500.0,0.00042191,120]
[336730801,1725085367477,-635.17484955,0.00042191,120]
[336730802,1725085367525,-979.96,0.00042191,120]
[336730803,1725085367576,-532.04,0.00042191,120]
[336730804,1725085367627,-1078.05,0.00042191,120]
[336730805,1725085367676,-1968.69,0.00042191,120]
[336730806,1725085367727,-528.35,0.00042191,120]
[336730807,1725085367774,-178.40258256,0.00042191,120]
[336730808,1725085367820,-500.0,0.00042191,120]
[336730809,1725085367870,-500.0,0.00042191,120]
[336730810,1725085367918,-1332.09,0.00042191,120]
[336730811,1725085367964,-500.0,0.00042191,120]
[336730812,1725085368010,-876.79,0.00042191,120]
[336730813,1725085368059,-1367.12,0.00042191,120]
[336730814,1725085368108,-500.0,0.00042191,120]
[336730815,1725085368155,-2989.98,0.00042191,120]
[336730816,1725085368208,-1307.87,0.00042191,120]
[336730817,1725085368258,-500.0,0.00042191,120]
[336730818,1725085368310,-1533.32,0.00042191,120]
[336730819,1725085368361,-1296.01,0.00042191,120]
[336730820,1725085368415,-500.0,0.00042191,120]
[336730821,1725085368466,-500.0,0.00042191,120]
[336730822,1725085368515,-600.74,0.00042191,120]
[336730823,1725085368566,-5814.25,0.00042191,120]
[336730824,1725085368617,-629.87,0.00042191,120]
[336730825,1725085368667,-1062.71,0.00042191,120]
[336730826,1725085368718,-533.34,0.00042191,120]
[336730827,1725085368769,-1824.21,0.00042191,120]
[336730828,1725085368819,-1015.22,0.00042191,120]
[336730829,1725085368871,-500.0,0.00042191,120]
[336730830,1725085368922,-951.23,0.00042191,120]
[336730831,1725085368971,-5481.44,0.00042191,120]
[336730832,1725085369020,-894.49,0.00042191,120]
[336730833,1725085369069,-842.88,0.00042191,120]
[336730834,1725085369119,-1186.34,0.00042191,120]
[336730835,1725085369166,-677.22,0.00042191,120]
[336730836,1725085369215,-767.11,0.00042191,120]
[336730837,1725085369271,-5075.61,0.00042191,120]
[336730838,1725085369323,-862.19,0.00042191,120]
[336730839,1725085369375,-528.15,0.00042191,120]
[336730840,1725085369426,-825.37,0.00042191,120]
[336730841,1725085369475,-1753.96,0.00042191,120]
[336730842,1725085369526,-1653.61,0.00042191,120]
[336730843,1725085369577,-2000.96,0.00042191,120]
[336730844,1725085369800,-562.28,0.00042191,120]
[336730845,1725085369853,-500.0,0.00042191,120]
[336730846,1725085369905,-1013.59,0.00042191,120]
[336730847,1725085369957,-500.0,0.00042191,120]
[336730848,1725085370007,-1776.62,0.00042191,120]
[336730849,1725085370057,-500.0,0.00042191,120]
[336730850,1725085370118,-3910.3,0.00042191,120]
[336730851,1725085370172,-1570.05,0.00042191,120]
[336730852,1725085370226,-764.94,0.00042191,120]
[336730853,1725085370276,-500.0,0.00042191,120]
[336730854,1725085370327,-500.0,0.00042191,120]
[336730855,1725085370374,-500.0,0.00042191,120]
[336730856,1725085370422,-581.43666835,0.00042191,120]
[336730857,1725085370472,-500.0,0.00042191,120]
[336730858,1725085370519,-500.0,0.00042191,120]
[336730859,1725085370567,-883.9,0.00042191,120]
[336730860,1725085370618,-500.0,0.00042191,120]
[336730861,1725085370669,-696.93,0.00042191,120]
[336730862,1725085370718,-500.0,0.00042191,120]
[336730863,1725085370767,-500.0,0.00042191,120]
[336730864,1725085370819,-500.0,0.00042191,120]
[336730865,1725085370870,-1372.32,0.00042191,120]
[336730866,1725085370924,-500.0,0.00042191,120]
[336730867,1725085370975,-833.92,0.00042191,120]
[336730868,1725085371025,-664.41,0.00042191,120]
[336730869,1725085371074,-1438.05,0.00042191,120]
[336730870,1725085371125,-500.0,0.00042191,120]
[336730871,1725085371175,-863.53,0.00042191,120]
[336730872,1725085371224,-785.33,0.00042191,120]
[336730873,1725085371273,-1603.72,0.00042191,120]
[336730874,1725085371322,-500.0,0.00042191,120]
[336730875,1725085371370,-500.0,0.00042191,120]
[336730876,1725085371416,-500.0,0.00042191,120]
[336730877,1725085371464,-2224.87,0.00042191,120]
[336730878,1725085371509,-500.0,0.00042191,120]
[336730879,1725085371557,-1322.92,0.00042191,120]
[336730880,1725085371602,-2404.44,0.00042191,120]
[336730881,1725085371647,-500.0,0.00042191,120]
[336730882,1725085371694,-901.41,0.00042191,120]
[336730883,1725085371739,-610.01,0.00042191,120]
[336730884,1725085371783,-729.12,0.00042191,120]
[336730885,1725085371826,-500.0,0.00042191,120]
[336730886,1725085371871,-1979.21,0.00042191,120]
[336730887,1725085371919,-577.81,0.00042191,120]
[336730888,1725085371967,-500.0,0.00042191,120]
[336730889,1725085372015,-6226.26,0.00042191,120]
[336730890,1725085372062,-666.11,0.00042191,120]
[336730891,1725085372111,-500.0,0.00042191,120]
[336730892,1725085372161,-500.0,0.00042191,120]
[336730893,1725085372211,-2083.88,0.00042191,120]
[336730894,1725085372259,-2247.13,0.00042191,120]
[336730895,1725085372309,-258.20527667,0.00042191,120]
[336730896,1725085372359,-3075.22,0.00042191,120]
[336730897,1725085372406,-2368.94,0.00042191,120]
[336730898,1725085372456,-151.0,0.00042356,120]
[336730899,1725085372505,-1000.0,0.00042366,120]
[336730900,1725085372554,-150.0,0.00042384,120]
[336730901,1725085372604,-150.0,0.00042459,120]
[336730902,1725085372653,-150.0,0.00042509,120]
[336730903,1725085372704,-150.0,0.00042604,120]
[336730904,1725085372755,-1000.0,0.0004266,120]
[336730905,1725085372805,-590.64,0.00042739,120]
[336730906,1725085372854,-2142.76,0.00042739,120]
[336730907,1725085372899,-500.0,0.00042739,120]
[336730908,1725085372947,-500.0,0.00042739,120]
[336730909,1725085372996,-500.0,0.00042739,120]
[336730910,1725085373044,-266.99065379,0.00042739,120]
[336730911,1725085373092,-500.0,0.00042739,120]
[336730912,1725085373141,-500.0,0.00042739,120]
[336730913,1725085373185,-500.0,0.00042739,120]
[336730914,1725085373231,-500.0,0.00042739,120]
[336730915,1725085373282,-500.0,0.00042739,120]
[336730916,1725085373330,-519.87547083,0.00042739,120]
[336730917,1725085373378,-970.41,0.00042739,120]
[336730918,1725085373431,-500.0,0.00042739,120]
[336730919,1725085373481,-500.0,0.00042739,120]
[336730920,1725085373530,-1254.2,0.00042739,120]
[336730921,1725085373583,-2064.59,0.00042739,120]
[336730922,1725085373638,-500.0,0.00042739,120]
[336730923,1725085373690,-1831.01,0.00042739,120]
[336730924,1725085373741,-1397.22,0.00042739,120]
[336730925,1725085373791,-500.0,0.00042739,120]
[336730926,1725085373842,-2245.78,0.00042739,120]
[336730927,1725085373897,-500.0,0.00042739,120]
[336730928,1725085373949,-1552.31,0.00042739,120]
[336730929,1725085374002,-2597.83,0.00042739,120]
[336730930,1725085374053,-500.0,0.00042739,120]
[336730931,1725085374103,-1035.53,0.00042739,120]
[336730932,1725085374152,-500.0,0.00042739,120]
[336730933,1725085374201,-744.82,0.00042739,120]
[336730934,1725085374254,-696.59,0.00042739,120]
[336730935,1725085374303,-673.61,0.00042739,120]
[336730936,1725085374354,-197.45647512,0.00042739,120]
[336730937,1725085374405,-1520.87,0.00042739,120]
[336730938,1725085374457,-582.5,0.00042739,120]
[336730939,1725085374507,-500.0,0.00042739,120]
[336730940,1725085374560,-531.38,0.00042739,120]
[336730941,1725085374612,-1554.54,0.00042739,120]
[336730942,1725085374667,-1271.21,0.00042739,120]
[336730943,1725085374722,-506.46,0.00042739,120]
[336730944,1725085374775,-500.0,0.00042739,120]
[336730945,1725085374823,-500.0,0.00042739,120]
[336730946,1725085374875,-525.09,0.00042739,120]
[336730947,1725085374931,-917.3,0.00042739,120]
[336730948,1725085375163,-500.0,0.00042739,120]
[336730949,1725085375213,-500.0,0.00042739,120]
[336730950,1725085375269,-996.95,0.00042739,120]
[336730951,1725085375325,-500.0,0.00042739,120]
[336730952,1725085375381,-696.4,0.00042739,120]
[336730953,1725085375437,-500.0,0.00042739,120]
[336730954,1725085375487,-803.74,0.00042739,120]
[336730955,1725085375537,-748.83,0.00042739,120]
[336730956,1725085375590,-500.0,0.00042739,120]
[336730957,1725085375641,-568.05,0.00042739,120]
[336730958,1725085375694,-1168.88,0.00042739,120]
[336730959,1725085375744,-761.86,0.00042739,120]
[336730960,1725085375795,-991.52,0.00042739,120]
[336730961,1725085375847,-500.0,0.00042739,120]
[336730962,1725085375899,-500.0,0.00042739,120]
[336730963,1725085375951,-1384.4,0.00042739,120]
[336730964,1725085376007,-731.6,0.00042739,120]
[336730965,1725085376062,-500.0,0.00042739,120]
[336730966,1725085376117,-2458.49,0.00042739,120]
[336730967,1725085376172,-500.0,0.00042739,120]
[336730968,1725085376228,-540.27,0.00042739,120]
[336730969,1725085376284,-500.0,0.00042739,120]
[336730970,1725085376339,-500.0,0.00042739,120]
[336730971,1725085376395,-500.0,0.00042739,120]
[336730972,1725085376452,-2118.23,0.00042739,120]
[336730973,1725085376506,-600.38,0.00042739,120]
[336730974,1725085376560,-522.69,0.00042739,120]
[336730975,1725085376613,-1210.64,0.00042739,120]
[336730976,1725085376664,-239.76044007,0.00042739,120]
[336730977,1725085376717,-500.0,0.00042739,120]
[336730978,1725085376769,-1856.52,0.00042739,120]
[336730979,1725085376818,-500.0,0.00042739,120]
[336730980,1725085376869,-500.0,0.00042739,120]
[336730981,1725085376922,-500.0,0.00042739,120]
[336730982,1725085376972,-856.67,0.00042739,120]
[336730983,1725085377021,-1905.46,0.00042739,120]
[336730984,1725085377072,-1521.24,0.00042739,120]
[336730985,1725085377122,-500.0,0.00042739,120]
[336730986,1725085377172,-547.37,0.00042739,120]
[336730987,1725085377224,-500.0,0.00042739,120]
[336730988,1725085377275,-660.11,0.00042739,120]
[336730989,1725085377326,-2325.34,0.00042739,120]
[336730990,1725085377379,-501.74,0.00042739,120]
[336730991,1725085377430,-849.88,0.00042739,120]
[336730992,1725085377479,-2388.65,0.00042739,120]
[336730993,1725085377530,-500.0,0.00042739,120]
[336730994,1725085377580,-2070.59,0.00042739,120]
[336730995,1725085377631,-500.0,0.00042739,120]
[336730996,1725085377682,-1982.62,0.00042739,120]
[336730997,1725085377735,-500.0,0.00042739,120]
[336730998,1725085377786,-500.0,0.00042739,120]
[336730999,1725085377839,-500.0,0.00042739,120]
[336731000,1725085377894,-2073.66,0.00042739,120]
[336731001,1725085377947,-161.26495785,0.00042739,120]
[336731002,1725085377998,-909.97,0.00042739,120]
[336731003,1725085378051,-500.0,0.00042739,120]
[336731004,1725085378103,-523.5,0.00042739,120]
[336731005,1725085378157,-500.0,0.00042739,120]
[336731006,1725085378212,-500.0,0.00042739,120]
[336731007,1725085378266,-2189.52,0.00042739,120]
[336731008,1725085378323,-500.0,0.00042739,120]
[336731009,1725085378379,-1371.6,0.00042739,120]
[336731010,1725085378438,-804.7,0.00042739,120]
[336731011,1725085378492,-1112.52,0.00042739,120]
[336731012,1725085378546,-273.23373705,0.00042739,120]
[336731013,1725085378600,-2039.92,0.00042739,120]
[336731014,1725085378653,-964.65,0.00042739,120]
[336731015,1725085378707,-500.0,0.00042739,120]
[336731016,1725085378760,-500.0,0.00042739,120]
[336731017,1725085378812,-1312.09,0.00042739,120]
[336731018,1725085378864,-500.0,0.00042739,120]
[336731019,1725085378915,-316.3030391,0.00042739,120]
[336731020,1725085378967,-1782.75,0.00042739,120]
[336731021,1725085379016,-500.0,0.00042739,120]
[336731022,1725085379066,-1702.92,0.00042739,120]
[336731023,1725085379116,-1029.68,0.00042739,120]
[336731024,1725085379164,-2092.19,0.00042739,120]
[336731025,1725085379211,-1324.2,0.00042739,120]
[336731026,1725085379260,-500.0,0.00042739,120]
[336731027,1725085379310,-500.0,0.00042739,120]
[336731028,1725085379359,-500.0,0.00042739,120]
[336731029,1725085379406,-500.0,0.00042739,120]
[336731030,1725085379453,-687.53,0.00042739,120]
[336731031,1725085379497,-500.0,0.00042739,120]
[336731032,1725085379543,-1577.57,0.00042739,120]
[336731033,1725085379592,-927.35,0.00042739,120]
[336731034,1725085379640,-1633.84,0.00042739,120]
[336731035,1725085379686,-500.0,0.00042739,120]
[336731036,1725085379733,-500.0,0.00042739,120]
[336731037,1725085379778,-500.0,0.00042739,120]
[336731038,1725085379823,-500.0,0.00042739,120]
[336731039,1725085379876,-500.0,0.00042739,120]
[336731040,1725085379932,-500.0,0.00042739,120]
[336731041,1725085379981,-500.0,0.00042739,120]
[336731042,1725085380032,-1255.1,0.00042739,120]
[336731043,1725085380081,-961.72,0.00042739,120]
[336731044,1725085380132,-553.73,0.00042739,120]
[336731045,1725085380191,-793.38,0.00042739,120]
[336731046,1725085380244,-2218.72,0.00042739,120]
[336731047,1725085380296,-1344.82,0.00042739,120]
[336731048,1725085380346,-500.0,0.00042739,120]
[336731049,1725085380396,-500.0,0.00042739,120]
[336731050,1725085380445,-207.04633492,0.00042739,120]
[336731051,1725085380494,-846.91,0.00042739,120]
[336731052,1725085380714,-500.0,0.00042739,120]
[336731053,1725085380764,-1968.84,0.00042739,120]
[336731054,1725085380814,-500.0,0.00042739,120]
[336731055,1725085380867,-1518.96,0.00042739,120]
[336731056,1725085380918,-1835.9,0.00042739,120]
[336731057,1725085380968,-1044.01,0.00042739,120]
[336731058,1725085381020,-603.33,0.00042739,120]
[336731059,1725085381074,-805.02,0.00042739,120]
[336731060,1725085381126,-500.0,0.00042739,120]
[336731061,1725085381177,-2179.57,0.00042739,120]
[336731062,1725085381227,-1640.29,0.00042739,120]
[336731063,1725085381278,-1667.23,0.00042739,120]
[336731064,1725085381329,-500.0,0.00042739,120]
[336731065,1725085381382,-1646.21,0.00042739,120]
[336731066,1725085381435,-591.32,0.00042739,120]
[336731067,1725085381488,-795.81,0.00042739,120]
[336731068,1725085381541,-877.02,0.00042739,120]
[336731069,1725085381593,-2067.77,0.00042739,120]
[336731070,1725085381645,-608.39,0.00042739,120]
[336731071,1725085381694,-1275.11,0.00042739,120]
[336731072,1725085381742,-500.0,0.00042739,120]
[336731073,1725085381794,-500.0,0.00042739,120]
[336731074,1725085381842,-572.01,0.00042739,120]
[336731075,1725085381895,-500.0,0.00042739,120]
[336731076,1725085381944,-1704.35,0.00042739,120]
[336731077,1725085381995,-844.24,0.00042739,120]
[336731078,1725085382044,-606.37,0.00042739,120]
[336731079,1725085382092,-1379.1,0.00042739,120]
[336731080,1725085382142,-2069.4,0.00042739,120]
[336731081,1725085382190,-500.0,0.00042739,120]
[336731082,1725085382239,-573.28,0.00042739,120]
[336731083,1725085382289,-1830.7,0.00042739,120]
[336731084,1725085382340,-936.23,0.00042739,120]
[336731085,1725085382389,-505.41,0.00042739,120]
[336731086,1725085382439,-500.0,0.00042739,120]
[336731087,1725085382491,-565.82,0.00042739,120]
[336731088,1725085382541,-500.0,0.00042739,120]
[336731089,1725085382591,-500.0,0.00042739,120]
[336731090,1725085382642,-802.68,0.00042739,120]
[336731091,1725085382695,-1846.73,0.00042739,120]
[336731092,1725085382744,-500.0,0.00042739,120]
[336731093,1725085382794,-500.0,0.00042739,120]
[336731094,1725085382849,-1624.05,0.00042739,120]
[336731095,1725085382902,-709.12,0.00042739,120]
[336731096,1725085382953,-1465.91,0.00042739,120]
[336731097,1725085383003,-508.15,0.00042739,120]
[336731098,1725085383056,-1707.44,0.00042739,120]
[336731099,1725085383115,-500.0,0.00042739,120]
[336731100,1725085383172,-402.83634059,0.00042739,120]
[336731101,1725085383223,-500.0,0.00042739,120]
[336731102,1725085383283,-829.84,0.00042739,120]
[336731103,1725085383345,-500.0,0.00042739,120]
[336731104,1725085383406,-695.91,0.00042739,120]
[336731105,1725085383467,-508.01,0.00042739,120]
[336731106,1725085383527,-500.0,0.00042739,120]
[336731107,1725085383581,-500.0,0.00042739,120]
[336731108,1725085383637,-1694.24,0.00042739,120]
[336731109,1725085383692,-1329.5,0.00042739,120]
[336731110,1725085383747,-1254.74,0.00042739,120]
[336731111,1725085383803,-500.0,0.00042739,120]
[336731112,1725085383854,-701.74,0.00042739,120]
[336731113,1725085383910,-1718.9,0.00042739,120]
[336731114,1725085383967,-500.0,0.00042739,120]
[336731115,1725085384020,-500.0,0.00042739,120]
[336731116,1725085384072,-536.3,0.00042739,120]
[336731117,1725085384127,-500.0,0.00042739,120]
[336731118,1725085384180,-1416.58,0.00042739,120]
[336731119,1725085384234,-1344.35,0.00042739,120]
[336731120,1725085384289,-500.0,0.00042739,120]
[336731121,1725085384344,-1308.79,0.00042739,120]
[336731122,1725085384396,-1065.87,0.00042739,120]
[336731123,1725085384450,-598.48,0.00042739,120]
[336731124,1725085384503,-934.02,0.00042739,120]
[336731125,1725085384554,-1376.61,0.00042739,120]
[336731126,1725085384608,-1682.93,0.00042739,120]
[336731127,1725085384663,-1537.85,0.00042739,120]
[336731128,1725085384716,-546.73,0.00042739,120]
[336731129,1725085384768,-1026.63,0.00042739,120]
[336731130,1725085384821,-500.0,0.00042739,120]
[336731131,1725085384872,-1312.14,0.00042739,120]
[336731132,1725085384929,-500.0,0.00042739,120]
[336731133,1725085384983,-1653.03,0.00042739,120]
[336731134,1725085385034,-500.0,0.00042739,120]
[336731135,1725085385086,-802.15,0.00042739,120]
[336731136,1725085385140,-522.63,0.00042739,120]
[336731137,1725085385191,-500.0,0.00042739,120]
[336731138,1725085385247,-500.0,0.00042739,120]
[336731139,1725085385300,-500.0,0.00042739,120]
[336731140,1725085385354,-520.04,0.00042739,120]
[336731141,1725085385412,-1148.46,0.00042739,120]
[336731142,1725085385468,-500.0,0.00042739,120]
[336731143,1725085385523,-795.3,0.00042739,120]
[336731144,1725085385579,-554.41,0.00042739,120]
[336731145,1725085385636,-1325.16,0.00042739,120]
[336731146,1725085385689,-1311.27,0.00042739,120]
[336731147,1725085385741,-1407.95,0.00042739,120]
[336731148,1725085385795,-1863.91,0.00042739,120]
[336731149,1725085385847,-500.0,0.00042739,120]
[336731150,1725085385902,-1652.24,0.00042739,120]
[336731151,1725085385956,-641.76,0.00042739,120]
[336731152,1725085386011,-854.31,0.00042739,120]
[336731153,1725085386062,-500.0,0.00042739,120]
[336731154,1725085386114,-527.05,0.00042739,120]
[336731155,1725085386167,-500.0,0.00042739,120]
[336731156,1725085386404,-616.77,0.00042739,120]
[336731157,1725085386460,-2261.76,0.00042739,120]
[336731158,1725085386515,-956.29,0.00042739,120]
[336731159,1725085386569,-500.0,0.00042739,120]
[336731160,1725085386632,-675.48,0.00042739,120]
[336731161,1725085386689,-500.0,0.00042739,120]
[336731162,1725085386744,-979.96,0.00042739,120]
[336731163,1725085386799,-532.04,0.00042739,120]
[336731164,1725085386854,-1078.05,0.00042739,120]
[336731165,1725085386912,-1968.69,0.00042739,120]
[336731166,1725085386966,-528.35,0.00042739,120]
[336731167,1725085387022,-500.0,0.00042739,120]
[336731168,1725085387075,-500.0,0.00042739,120]
[336731169,1725085387123,-1332.09,0.00042739,120]
[336731170,1725085387169,-500.0,0.00042739,120]
[336731171,1725085387216,-876.79,0.00042739,120]
[336731172,1725085387262,-1367.12,0.00042739,120]
[336731173,1725085387310,-500.0,0.00042739,120]
[336731174,1725085387359,-2989.98,0.00042739,120]
[336731175,1725085387406,-1307.87,0.00042739,120]
[336731176,1725085387450,-500.0,0.00042739,120]
[336731177,1725085387497,-1533.32,0.00042739,120]
[336731178,1725085387542,-1296.01,0.00042739,120]
[336731179,1725085387588,-500.0,0.00042739,120]
[336731180,1725085387639,-500.0,0.00042739,120]
[336731181,1725085387686,-600.74,0.00042739,120]
[336731182,1725085387738,-5814.25,0.00042739,120]
[336731183,1725085387790,-629.87,0.00042739,120]
[336731184,1725085387840,-1062.71,0.00042739,120]
[336731185,1725085387888,-533.34,0.00042739,120]
[336731186,1725085387936,-1824.21,0.00042739,120]
[336731187,1725085387985,-1015.22,0.00042739,120]
[336731188,1725085388031,-500.0,0.00042739,120]
[336731189,1725085388081,-951.23,0.00042739,120]
[336731190,1725085388134,-5481.44,0.00042739,120]
[336731191,1725085388181,-894.49,0.00042739,120]
[336731192,1725085388227,-842.88,0.00042739,120]
[336731193,1725085388274,-677.22,0.00042739,120]
[336731194,1725085388324,-1186.34,0.00042739,120]
[336731195,1725085388375,-767.11,0.00042739,120]
[336731196,1725085388426,-5075.61,0.00042739,120]
[336731197,1725085388476,-862.19,0.00042739,120]
[336731198,1725085388524,-528.15,0.00042739,120]
[336731199,1725085388576,-825.37,0.00042739,120]
[336731200,1725085388627,-1753.96,0.00042739,120]
[336731201,1725085388678,-2000.96,0.00042739,120]
[336731202,1725085388727,-1653.61,0.00042739,120]
[336731203,1725085388775,-562.28,0.00042739,120]
[336731204,1725085388825,-500.0,0.00042739,120]
[336731205,1725085388872,-1013.59,0.00042739,120]
[336731206,1725085388919,-500.0,0.00042739,120]
[336731207,1725085388967,-1776.62,0.00042739,120]
[336731208,1725085389011,-500.0,0.00042739,120]
[336731209,1725085389057,-3910.3,0.00042739,120]
[336731210,1725085389101,-1570.05,0.00042739,120]
[336731211,1725085389146,-764.94,0.00042739,120]
[336731212,1725085389195,-500.0,0.00042739,120]
[336731213,1725085389243,-500.0,0.00042739,120]
[336731214,1725085389293,-500.0,0.00042739,120]
[336731215,1725085389344,-500.0,0.00042739,120]
[336731216,1725085389392,-500.0,0.00042739,120]
[336731217,1725085389440,-883.9,0.00042739,120]
[336731218,1725085389490,-286.83616785,0.00042739,120]
[336731219,1725085389539,-696.93,0.00042739,120]
[336731220,1725085389587,-500.0,0.00042739,120]
[336731221,1725085389635,-500.0,0.00042739,120]
[336731222,1725085389684,-500.0,0.00042739,120]
[336731223,1725085389734,-1372.32,0.00042739,120]
[336731224,1725085389784,-500.0,0.00042739,120]
[336731225,1725085389832,-833.92,0.00042739,120]
[336731226,1725085389886,-664.41,0.00042739,120]
[336731227,1725085389936,-1438.05,0.00042739,120]
[336731228,1725085389984,-500.0,0.00042739,120]
[336731229,1725085390033,-863.53,0.00042739,120]
[336731230,1725085390080,-785.33,0.00042739,120]
[336731231,1725085390129,-1603.72,0.00042739,120]
[336731232,1725085390178,-500.0,0.00042739,120]